{"text_format":"1","workbook":"xlsx","n_sheets":3,"sheets":["RBC-Info","Daten","Diagramm"],"not_rendered":{"charts":3,"images":7,"macros":1,"external_links":5,"defined_names":219,"comments":0,"pivot_tables":0},"unopened":[{"sheet":"Diagramm","index":2,"reason":"not_a_worksheet"}],"bounds":{"document_bytes":16777216,"sheet_cells":100000,"rows_first":2000,"rows_last":500,"rows_between":2000,"halvings":0,"cell_chars":16384,"cell_head_chars":4096},"cells_cut":0,"cells_raw":0,"read":"whole","date_system":"1900"}

{"sheet":"RBC-Info","index":0,"n_rows":27,"n_cols":13,"rows_kept":27,"cut":false,"hidden":false,"merged":[[1,12,7,13],[3,10,3,11],[4,10,4,11],[8,12,8,13],[11,6,11,9]]}
[]
[]
[]
[]
[]
[]
[]
[]
[null,null,null,null,null,null,null,null,null,null,null,null,"Ralf Beinbrecht"]
[]
[]
[]
[]
[]
[]
[]
[]
[]
[]
[null,"Hinweis: "]
[null,"Alle Angaben in diesem Tool wurden vom Autor mit größter Sorgfalt erarbeitet bzw. zusammengestellt und unter Einschaltung wirksamer Kontrollmaßnahmen reproduziert."]
[null,"Trotzdem sind Fehler nicht ganz auszuschließen. Der Vertreiber / Autor sieht sich deshalb gezwungen, darauf hinzuweisen, dass sie weder eine Garantie noch "]
[null,"die juristische Verantwortung oder irgendeine Haftung für Folgen, die auf fehlerhafte Angaben zurückgehen, übernommen werden."]
[null,"Für die Mitteilung etwaiger Fehler sind Vertreiber / Autor jederzeit dankbar."]
[]
[null,"2012©RBC - Ralf Beinbrecht Consulting, 73529 Schwäbisch Gmünd"]
[null,"Alle Inhalte sind geistiges Eigentum des Urhebers. Für die Verfügbarkeit und den Inhalt verlinkter Seiten wird keine Verantwortung übernommen. Änderungen und Irrtümer vorbehalten."]

{"sheet":"Daten","index":1,"n_rows":18,"n_cols":6,"rows_kept":18,"cut":false,"hidden":false,"merged":[[1,1,1,5]]}
[]
[null,"Pareto-Analyse"]
[]
[null,"Projekt:"]
[null,"Ersteller:"]
[null,"Datum:"]
[]
[null,"Nr","Anzahl","Bezeichnung Fehlerklasse","kumuliert","Prozent"]
[null,1,null,null,{"$f":"C9","v":0},{"$f":"E9/$E$18","v":{"$error":"#DIV/0!"}}]
[null,2,null,null,{"$f":"E9+C10","v":0},{"$f":"E10/$E$18","v":{"$error":"#DIV/0!"}}]
[null,3,null,null,{"$f":"E10+C11","v":0},{"$f":"E11/$E$18","v":{"$error":"#DIV/0!"}}]
[null,4,null,null,0,{"$error":"#DIV/0!"}]
[null,5,null,null,0,{"$error":"#DIV/0!"}]
[null,6,null,null,0,{"$error":"#DIV/0!"}]
[null,7,null,null,0,{"$error":"#DIV/0!"}]
[null,8,null,null,0,{"$error":"#DIV/0!"}]
[null,9,null,null,0,{"$error":"#DIV/0!"}]
[null,10,null,null,0,{"$error":"#DIV/0!"}]